Workbook

Sheet таблица 1
H1: Приложение 1 к отчету
A3: Отчет об исполнении целевых показателей муниципальной программы города Усолье-Сибирское
A5: Муниципальная программа «Развитие образования» на 2019-2027 годы
A6: (далее - муниципальная программа)
A7: за 2025 год
A9: № п/п | B9: Наименование целевого показателя | C9: Ед. изм. | D9: Плановое значение на 2025 год | E9: Фактическое Значение за отчетный период | F9: Отклонение фактического значения от планового | H9: Обоснование причин отклонения (при отклонении на +/- 5%)
F10: -/+ | G10: %
A11: 1 | B11: 2 | C11: 3 | D11: 4 | E11: 5 | F11: 6 | G11: 7 | H11: 8
A12: Муниципальная программа города Усолье-Сибирское «Развитие образования» на 2019-2027 годы
A13: 1. | B13: Доля детей от 1 года до 8 лет, охваченных дошкольным образованием от общего числа детей, в возрасте от 1 года до 8 лет | C13: % | D13: 56.3 | E13: 56.3 | F13: =E13-D13 -> 0 | G13: =F13/D13 -> 0.00% | I13: =E13/D13 -> 1.00
A14: 2. | B14: Доля успевающих учеников общеобразовательных учреждений в общем контингенте обучающихся общеобразовательных учреждений | C14: % | D14: 99.7 | E14: 99.7 | F14: =E14-D14 -> 0 | G14: =F14/D14 -> 0.00% | I14: =E14/D14 -> 1.00
A15: 3. | B15: Доля детей, получающих услуги дополнительного образования, в общей численности детей в возрасте 5-18 лет | C15: % | D15: 71 | E15: 71 | F15: =E15-D15 -> 0 | G15: =F15/D15 -> 0.00% | I15: =E15/D15 -> 1.00
A16: 4. | B16: Доля детей, охваченных отдыхом и оздоровлением в каникулярный период, в общей численности детей в возрасте 7-18 лет | C16: % | D16: 17.9 | E16: 17.9 | F16: =E16-D16 -> 0 | G16: =F16/D16 -> 0.00% | I16: =E16/D16 -> 1.0
A17: 5. | B17: Доля образовательных организаций, вовлеченных в реализацию национального проекта «Образование» | C17: % | D17: 100 | E17: 100 | F17: =E17-D17 -> 0 | G17: =F17/D17 -> 0.00% | I17: =E17/D17 -> 1 | J17: =I17+I15+I14+I13+I16 -> 5.000 | K17: =J17/5 -> 1.00
A18: Подпрограмма 1. «Развитие дошкольного образования города Усолье-Сибирское» на 2019-2027 годы
A19: 1.1. | B19: Доля детей от 1 года до 8 лет, охваченных дошкольным образованием от общего числа детей, в возрасте от 1 года до 8 лет | C19: % | D19: 56.3 | E19: 56.3 | F19: =E19-D19 -> 0 | G19: =F19/D19 -> 0.00% | I19: =E19/D19 -> 1.00
A20: 1.2. | B20: Удельный вес числа дошкольных образовательных учреждений, в которых проведен выборочный капитальный ремонт, в общем числе дошкольных образовательных учреждений, здания которых требуют выборочного капитального ремонта | C20: % | D20: 0.0 | E20: 0.0 | F20: =E20-D20 -> 0 | G20: 0.00% | I20: 0.00 | J20: =I19+I20+I21 -> 2.00 | K20: =J20/2 -> 1.00 | L20: подпрограмма 1
A21: 1.3. | B21: Количество дошкольных организаций, реализующих инициативные проекты на территории города Усолье-Сибирское | C21: ед. | D21: 5 | E21: 5 | F21: =E21-D21 -> 0 | G21: =F21/D21 -> 0.00% | I21: =E21/D21 -> 1
A22: Подпрограмма 2. «Развитие начального общего, основного общего, среднего общего образования города Усолье-Сибирское» на 2019-2027 годы
A23: 2.1. | B23: Доля успевающих учеников общеобразовательных учреждений в общем контингенте обучающихся общеобразовательных учреждений | C23: % | D23: 99.7 | E23: 99.7 | F23: =E23-D23 -> 0 | G23: =F23/D23 -> 0.00% | I23: =E23/D23 -> 1
A24: 2.2. | B24: Доля обучающихся по новым федеральным государственным образовательным стандартам в общей численности обучающихся муниципальных общеобразовательных учреждений | C24: % | D24: 100 | E24: 100 | F24: 0 | G24: 0.00% | I24: =E24/D24 -> 1
A25: 2.3. | B25: Удельный вес числа общеобразовательных учреждений, в которых проведен выборочный капитальный ремонт, в общем числе общеобразовательных учреждений, здания которых требуют выборочного капитального ремонта | C25: % | D25: 0 | E25: 0 | F25: 0 | G25: 0.00% | I25: 0
A26: 2.4. | B26: Количество обучающихся, воспользовавшихся услугами общественного транспорта в целях доступности получения услуги начального общего, основного общего, среднего общего образования | C26: чел. | D26: 2700 | E26: 2894 | F26: 194 | G26: =F26/D26 -> 7.19% | H26: Увеличение количества детей, воспользовавшихся услугами общественного транспорта | I26: =E26/D26 -> 1
A27: 2.5. | B27: Доля детей, обеспеченных бесплатным питьевым молоком, в общем количестве детей, нуждающихся в обеспечении бесплатным питьевым молоком. | C27: % | D27: 0 | E27: 0 | F27: 0 | G27: 0.00% | I27: 0
A28: 2.6. | B28: Доля обучающихся, получающих начальное общее образование в государственных и муниципальных образовательных организациях, получающих бесплатное горячее питание, к общему количеству обучающихся, получающих начальное общее образование в государственных и муниципальных образовательных организациях. | C28: % | D28: 100 | E28: 100 | F28: 0 | G28: 0.00% | I28: 1
A29: 2.7. | B29: Доля педагогических работников общеобразовательных организаций, получивших вознаграждение за классное руководство, в общей численности педагогических работников такой категории. | C29: % | D29: 100 | E29: 100 | F29: 0 | G29: 0.00% | I29: =E29/D29 -> 1 | J29: =I23+I24+I26+I28+I29+I30+I32+I33+I34 -> 9 | K29: =J29/9 -> 1.0 | L29: подпрограмма 2
A30: 2.8. | B30: Количество общеобразовательных организаций, обеспеченных учебниками и учебными пособиями, а так же учебно-методическими материалами, необходимыми для реализации образовательных программ. | C30: ед. | D30: 5 | E30: 5 | F30: 0 | G30: 0.00% | I30: =E30/D30 -> 1
A31: 2.9. | B31: Количество объектов, в которых выполнены мероприятия по капитальному ремонту спортивных площадок (стадионов) и (или) благоустройству территорий муниципальных общеобразовательных организаций в городе Усолье-Сибирское, в которых созданы школьные спортивные клубы | C31: ед. | D31: - | E31: - | F31: - | G31: - | I31: =E31/D31 -> 
A32: 2.9. | B32: Доля общеобразовательных организаций, в которых введена должность советник директора по взаимодействия с детскими общественными объединениями в государственных и муниципальных общеобразовательных организациях города Усолье-Сибирское | C32: % | D32: 100 | E32: 100 | F32: 0 | G32: 0.00% | I32: 1
A33: 2.10. | B33: Количество общеобразовательных организаций, реализующих инициативные проекты на территории города Усолье-Сибирское | C33: ед. | D33: 4 | E33: 4 | F33: 0 | G33: 0.00% | I33: 1
A34: 2.11. | B34: Доля общеобразовательных учреждений, оснастивших предметные кабинеты оборудованием, средстами обучения и воспитания | C34: % | D34: 71 | E34: 71 | F34: 0 | G34: 0.00% | I34: 1
A35: Подпрограмма 3. «Развитие дополнительного образования города Усолье-Сибирское» на 2019-2027 годы
A36: 3.1. | B36: Доля детей, получающих услуги дополнительного образования, в общей численности детей в возрасте 5-18 лет | C36: % | D36: 71 | E36: 71 | F36: =E36-D36 -> 0 | G36: =F36/D36 -> 0.00% | I36: =E36/D36 -> 1
A37: 3.2. | B37: Доля детей в возрасте от 5 до 18 лет, имеющих право на получение дополнительного образования в рамках системы персонифицированного финансирования в общей численности детей в возрасте от 5 до 18 лет. | C37: % | D37: 25 | E37: 25 | F37: =E37-D37 -> 0 | G37: =F37/D37 -> 0.00% | I37: =E37/D37 -> 1 | J37: =I37+I36+I38 -> 3.0 | K37: =J37/3 -> 1 | L37: подпрограмма 3
A38: 3.3. | B38: Количество организаций дополнительного образования, реализующих инициативные проекты/проекты народных инициатив на территории города Усолье-Сибирское | C38: ед. | D38: 1 | E38: 1 | F38: =E38-D38 -> 0 | G38: =F38/D38 -> 0.00% | I38: =E38/D38 -> 1
A39: Подпрограмма 4. «Организация отдыха и занятости детей в каникулярное время» на 2019-2027 годы
A40: 4.1. | B40: Количество детей, охваченных отдыхом в детских оздоровительных лагерях | C40: чел. | D40: 1140 | E40: 1094 | F40: =E40-D40 -> -46 | G40: =F40/D40 -> -4.04% | H40: Уменьшение количества детей в ДОЛ "Юность". | I40: =E40/D40 -> 0.96
A41: 4.2. | B41: Количество детей, охваченных отдыхом в лагерях с дневным пребыванием детей | C41: чел. | D41: 1015 | E41: 1015 | F41: =E41-D41 -> 0 | G41: =F41/D41 -> 0.00% | I41: =E41/D41 -> 1.00
A42: 4.3. | B42: Количество молодежи и несовершеннолетних, в том числе состоящих на учете в общеобразовательных учреждениях и правоохранительных органах, охваченных трудовой занятостью в каникулярное время | C42: чел. | D42: 150 | E42: 170 | F42: =E42-D42 -> 20 | G42: 13.33% | H42: Увеличение количества детей, охваченных трудовой занятостью в каникулярное время | I42: =E42/D42 -> 1.1 | J42: =I40+I41+I42 -> 3.09 | K42: =J42/3 -> 1.03 | L42: подпрограмма 4
A43: Подпрограмма 5. «Обеспечение организационных, информационных и методических профессиональных потребностей педагогических и руководящих работников образовательных учреждений»
A44: 5.1. | B44: Доля педагогических работников образовательных учреждений, имеющих аттестацию, в общей численности педагогических работников образовательных учреждений | C44: % | D44: 59 | E44: 59 | F44: =E44-D44 -> 0 | G44: =F44/D44 -> 0.00% | I44: =E44/D44 -> 1
A45: 5.2. | B45: Удельный вес числа образовательных учреждений, обеспечивающих предоставление нормативно закрепленного перечня сведений о своей деятельности на официальных сайтах, в общем числе образовательных учреждений | C45: % | D45: 100 | E45: 100 | F45: =E45-D45 -> 0 | G45: =F45/D45 -> 0.00% | I45: =E45/D45 -> 1 | J45: =I44+I45+I46 -> 3 | K45: =J45/3 -> 1.00 | L45: подпрограмма 5
A46: 5.3. | B46: Количество муниципальных образовательных учреждений, охваченных организационно - управленческими, информационно-методическими услугами | C46: ед. | D46: 44 | E46: 44 | F46: =E46-D46 -> 0 | G46: =F46/D46 -> 0.00% | I46: =E46/D46 -> 1
A47: Подпрограмма 6. «Обеспечение условий реализации национального проекта «Образование» на муниципальном уровне» на 2020-2027 годы
A48: 6.1. | B48: Доля детей в возрасте от 5 до 18 лет, охваченных дополнительным образованием. | C48: % | D48: 71 | E48: 71 | F48: =E48-D48 -> 0 | G48: =F48/D48 -> 0.00% | I48: =E48/D48 -> 1.00
A49: 6.2. | B49: Доля учителей общеобразовательных организаций, вовлеченных в национальную систему профессионального роста педагогических работников. | C49: % | D49: 36 | E49: 42 | F49: =E49-D49 -> 6 | G49: =F49/D49 -> 16.67% | H49: В 2025 году увеличилось количество учителей, получивших и подтвердивших высшую квалификационную категорию | I49: =E49/D49 -> 1.17
A50: 6.3. | B50: Доля образовательных организаций, расположенных на территории города Усолье-Сибирское, в которых внедрена целевая модель цифровой образовательной среды в образовательных организациях, реализующих образовательные программы общего образования | C50: % | D50: 100 | E50: 100 | F50: 0 | G50: =F50/D50 -> 0.00% | I50: 1
A51: 6.4. | B51: Доля муниципальных образовательных организаций, в которых обновлено содержание и методы обучения предметной области «Технология» и других предметных областей. | C51: % | D51: 71.4 | E51: 71.4 | F51: 0 | G51: 0.00% | I51: 1.00 | K51: =J51/8 -> 0.0
A52: 6.5. | B52: Количество услуг психолого – педагогической, методической и консультативной помощи родителям (законным представителям) детей, а также гражданам, желающим принять на воспитание в свои семьи детей, оставшихся без попечения родителей. | C52: ед. | D52: 502 | E52: 889 | F52: 387 | G52: 77.09% | H52: Увеличение количества услуг психолого – педагогической, методической и консультативной помощи родителям (законным представителям) детей, а также гражданам, желающим принять на воспитание в свои семьи детей, оставшихся без попечения родителей | I52: 1.8
A53: 6.6. | B53: Доля обучающихся общеобразовательных организаций города Усолье – Сибирское, вовлеченных в профориентационную деятельность. | C53: % | D53: 100 | E53: 100 | F53: 0 | G53: 0.00% | I53: 1.00
A54: 6.7. | B54: Доступность дошкольного образования для детей в возрасте до трех лет. | C54: % | D54: 100 | E54: 100 | F54: 0 | G54: 0.00% | I54: 1
A55: 6.8. | B55: Количество граждан города Усолье-Сибирское, ежегодно проходящих обучение по программам непрерывного образования (дополнительным образовательным программам и программам профессионального обучения) в образовательных организациях высшего образования, профессиональных образовательных организациях, организациях дополнительного профессионального образования. | C55: чел. | D55: 945 | E55: 1081 | F55: =E55-D55 -> 136 | G55: =F55/D55 -> 14.39% | H55: В связи с выделением субвенции из федерального бюджета на обучение педагогических работников, число педагогов прошедших КПК резко увеличилось в 2025 году. | I55: 1.1
A56: Мэр города М.В. Торопкин
